Cogmind - Beta 16 @@@ ROGUE MODE // 2025.12.09 @ 11:59:01 Player: laeb2 Result: Destroyed by exploding Fusion Modulator Performance ------------- Evolutions (0) 0 Regions Visited (1) 200 Robots Destroyed (10) 50 Value Destroyed (261) 261 Prototype IDs (0) 0 Alien Tech Used (0) 0 Bonus (0) 0 TOTAL SCORE: 511 Bonus ------- None Cogmind --------- Core Integrity 0/250 Matter 273/300 Energy 125/125 System Corruption 0% Temperature Cool (12) Movement Treading (160) Location -10/Materials Parts ------- > --- POWER (1) -------- Light Ion Engine > --- PROPULSION (2) --- Light Treads > --- UTILITY (2) ------ Improved Heat Sink Small Storage Unit > --- WEAPON (2) ------- Particle Gun Light Assault Rifle > --- INVENTORY (8) ---- Light Nuclear Core Wheel Wheel Compact Wheel Peak State ------------ > --- POWER ------------ Light Ion Engine > --- PROPULSION ------- Light Treads > --- UTILITY ---------- Improved Heat Sink Small Storage Unit > --- WEAPON ----------- Particle Gun Light Assault Rifle > --- INVENTORY -------- Light Nuclear Core Wheel Wheel Compact Wheel [Rating: 9] Favorites ----------- Power Ion Engine Engine Ion Engine Propulsion Light Treads Treads Light Treads Wheel Wheel Utility Small Storage Unit Device Seismic Detector Storage Small Storage Unit Weapon Light Assault Rifle Energy Gun Particle Gun Ballistic Gun Light Assault Rifle Build | -11 -10 ------- Run | Yrd Mat Slots Evolved . | . . Power . | . . Propulsion . | . . Utility . | . . Weapon . | . . Parts Attached 14 | 7 7 Power 2 | 1 1 Engine 2 | 1 1 Core . | . . Reactor . | . . Propulsion 5 | 2 3 Treads 3 | 2 1 Leg . | . . Wheel 2 | . 2 Hover . | . . Flight . | . . Utility 3 | 2 1 Device 2 | 1 1 Storage 1 | 1 . Processor . | . . Hackware . | . . Protection . | . . Artifact . | . . Weapon 4 | 2 2 Energy Gun 1 | . 1 Energy Cannon . | . . Ballistic Gun 3 | 2 1 Ballistic Cannon . | . . Launcher . | . . Special Weapon . | . . Impact Weapon . | . . Slashing Weapon . | . . Piercing Weapon . | . . Special Melee Weapon . | . . Unidentified Prototypes . | . . Parts Lost 6 | . 6 Power 1 | . 1 Propulsion 2 | . 2 Utility 1 | . 1 Weapon 2 | . 2 Highest Loss Streak 5 | . 5 To Critical Strikes . | . . Average Backups 4 | 2 5 Power . | . . Propulsion 3 | 1 3 Utility . | . . Weapon . | . . Tool/Special . | . . Unused Backups 1 | . 1 Power . | . . Propulsion 1 | . 1 Utility . | . . Weapon . | . . Tool/Special . | . . Average Slot Usage (%) 92 | . 92 Engine 13 | . 13 Treads 23 | . 23 Wheel 1 | . 1 Device 10 | . 10 Storage 14 | . 14 Ballistic Gun 26 | . 26 Peak Build Rating 9 | 7 9 Average Rating 6 | 5 6 On Entrance 3 | . 7 Avg Prop Armor Cover (%) . | . . Naked Turns . | . . Heaviest Build 13 | 13 13 Greatest Support 40 | 40 40 Greatest Overweight (x) . | . . Average Overweight (x) . | . . Largest Inventory Capacity 8 | 8 8 Average Capacity 7 | 7 8 Most Carried 6 | 5 6 Average Carried 4 | 2 5 Final Capacity 8 | 8 8 Final Carried 4 | 4 4 Class Distribution -------------------- 100% | Mutant Dominant Class ---------------- Mutant | -10/Materials Resources | -11 -10 ----------- Run | Yrd Mat Matter Collected 369 | 278 91 Remotely . | . . Salvage Created 412 | 88 324 Parts 25 | 6 19 Haulers Intercepted 1 | . 1 Recyclers Shooed . | . . Parts Field Recycled . | . . Retrieved Matter . | . . Parts Self-Destructed . | . . Prevented . | . . Parts Restored . | . . Kills | -11 -10 ------- Run | Yrd Mat Combat Hostiles Destroyed 6 | . 6 Guns 6 | . 6 Classes Destroyed 5 | 2 3 Tunneler 1 | 1 . Hauler 1 | . 1 Recycler 1 | 1 . Watcher 1 | . 1 Grunt 6 | . 6 Best Kill Streak 3 | 2 3 Combat Bots Only 3 | . 3 Max Kills in Single Turn 1 | 1 1 Gunslinging . | . . Exploded . | . . Melee . | . . Uniques/NPCs Destroyed . | . . Combat | -11 -10 -------- Run | Yrd Mat Hostile Shots Fired 82 | . 82 Missed 18 | . 18 Hits 64 | . 64 Projectile 64 | . 64 Critical Strikes 1 | . 1 Damage Taken 981 | . 981 Core 306 | . 306 Absorbed by Shields . | . . Core Remaining (%) 100 | 100 . Volleys Fired 44 | 4 40 Largest 2 | 2 2 Hottest 85 | 40 85 Shots Fired 87 | 8 79 Gun 87 | 8 79 Cannon . | . . Launcher . | . . Special . | . . Kinetic 86 | 8 78 Thermal 1 | . 1 Explosive . | . . Electromagnetic . | . . Robot Hit Streak 10 | 4 10 Robot Miss Streak 4 | 1 4 Penetration Max . | . . Secondary Targets . | . . Shots Hit Robots 60 | 7 53 Core Hits 25 | 4 21 Critical Kills . | . . Critical Parts Destroyed . | . . Critical Strikes . | . . Melee Attacks . | . . Impact . | . . Slashing . | . . Piercing . | . . Sneak Attacks . | . . Combat Hostiles . | . . Follow-up Attacks . | . . Damage Inflicted 510 | 59 451 Guns 510 | 59 451 Cannons . | . . Explosions . | . . Melee . | . . Ramming . | . . Kinetic 492 | 59 433 Thermal 18 | . 18 Explosive . | . . Electromagnetic . | . . Impact . | . . Slashing . | . . Piercing . | . . Highest Corruption . | . . Average Corruption . | . . Corruption Purged . | . . Corruption Blocked . | . . Overload Shots . | . . Overflow Damage . | . . Projectiles . | . . Explosions . | . . Melee . | . . Knockbacks . | . . Impact . | . . Kinetic . | . . Secondary . | . . Self-Inflicted Damage . | . . Shots . | . . Rammed . | . . Targets Rammed . | . . Kicked . | . . Crushed . | . . Highest Temperature 114 | . 114 Average Temperature 31 | . 31 Received Heat Transfer 504 | . 504 Siege Activations . | . . Martial Activations . | . . Shielding Activations . | . . Robots Disrupted . | . . Combat Hostiles . | . . Robots Corrupted . | . . Combat Hostiles . | . . Parts Fried . | . . Impact Corruptions . | . . Robots Melted . | . . Combat Hostiles . | . . Parts Melted . | . . Heat Transferred 37 | . 37 Parts Sabotaged . | . . Parts Stolen . | . . Parts Stripped . | . . Power Chain Reactions . | . . Alert | -11 -10 ------- Run | Yrd Mat Maximum Alert Level 1 | . 1 Low Security (%) 99 | 100 98 Level 1 . | . 1 Level 2 . | . . Level 3 . | . . Level 4 . | . . Level 5 . | . . High Security . | . . Max Security . | . . Peak Influence 206 | 5 206 Initial . | . . Average 20 | 2 23 Influence Increases 304 | 10 294 Destroy 0b10 Robot/C 120 | . 120 Destroy 0b10 Robot/NC 20 | 10 10 Destroy Leader 34 | . 34 Successful Hack 10 | . 10 Lose Combat Pursuer 120 | . 120 Influence Decreases 106 | 10 96 Time Decay 86 | 10 76 Lost Part 20 | . 20 Squads Dispatched 1 | . 1 Investigation . | . . Extermination . | . . Reinforcement 1 | . 1 Assault . | . . Garrison . | . . Intercept . | . . Searches Triggered . | . . Construction Impeded . | . . Haulers Reinforced . | . . Active Scanning Responses . | . . Cargo Convoy Interrupts . | . . Stealth | -11 -10 --------- Run | Yrd Mat Distress Signals 2 | . 2 Communications Jammed . | . . Distress Signals . | . . Times Spotted 19 | . 19 Peak Tracking Total 6 | . 6 Tactical Retreats 2 | . 2 Traps | -11 -10 ------- Run | Yrd Mat Traps Triggered . | . . Indirectly . | . . Trap Hack Attempts . | . . Triggered . | . . Disarmed . | . . Reprogrammed . | . . Reused . | . . Traps Extracted . | . . Installed . | . . Triggered . | . . Machines | -11 -10 ---------- Run | Yrd Mat Machines Disabled . | . . Max in Single Turn . | . . Machines Repaired . | . . Machines Dismantled . | . . Machines Sabotaged . | . . Overloaded Fab Kills . | . . Hacking | -11 -10 --------- Run | Yrd Mat Machines Accessed 2 | . 2 Terminals 2 | . 2 Fabricators . | . . Repair Stations . | . . Recycling Units . | . . Scanalyzers . | . . Garrison Access . | . . Total Hacks 5 | . 5 Successful 3 | . 3 Failed 2 | . 2 Catastrophic . | . . Database Lockouts . | . . Manual 5 | . 5 Terminals 5 | . 5 Fabricators . | . . Repair Stations . | . . Recycling Units . | . . Scanalyzers . | . . Garrison Access . | . . Terminal Hacks . | . . Fabricator Hacks . | . . Repair Station Hacks . | . . Recycling Unit Hacks . | . . Scanalyzer . | . . Garrison Access Hacks . | . . Unauthorized Hacks 3 | . 3 Terminals 3 | . 3 Botnet 2 | . 2 Operators 1 | . 1 Fabricators . | . . Repair Stations . | . . Recycling Units . | . . Scanalyzers . | . . Garrison Access . | . . Data Cores Recovered . | . . Used . | . . Hacking Detections 2 | . 2 Full Trace Events . | . . Feedback Events . | . . Feedback Blocked . | . . Robot Schematics Acquired . | . . Robots Built . | . . Authchips . | . . Time . | . . Total Robot Build Rating . | . . Part Schematics Acquired . | . . Parts Built . | . . Authchips . | . . Time . | . . Total Part Build Rating . | . . Part Studies Acquired . | . . Parts Repaired . | . . Time . | . . Parts Recycled . | . . Recycled Matter . | . . Retrieved Matter . | . . Retrieved Components . | . . Parts Scanalyzed . | . . Part Schematics Acquired . | . . Parts Damaged . | . . Bothacking | -11 -10 ------------ Run | Yrd Mat Used RIF Installer . | . . Robots Hacked . | . . Non-combat . | . . Combat . | . . Robot Hacks Applied . | . . Relay Couplers Released . | . . Fabnet Peak Effective % . | . . Robots Rewired . | . . Allies Hacked . | . . Hacks Repelled . | . . Allies | -11 -10 -------- Run | Yrd Mat Total Allies . | . . Largest Group . | . . Highest-Rated Group . | . . Highest-Rated Ally . | . . Total Orders . | . . Ally Attacks . | . . Total Damage . | . . Kills . | . . Allies Corrupted . | . . Allies Melted . | . . Intel | -11 -10 ------- Run | Yrd Mat Active Infowar (turns) 374 | 30 344 Seismic 374 | 30 344 Robot Analysis Total . | . . Derelict Logs Recovered . | . . Drone Launches . | . . Drone Recoveries . | . . Exploration | -11 -10 ------------- Run | Yrd Mat Turns Passed 542 | 82 460 Spaces Moved 245 | 45 200 Core 15 | 15 . Treads 201 | 30 171 Legs . | . . Wheels 29 | . 29 Hover . | . . Flight . | . . Fastest Speed 50 | 50 80 Average Speed 143 | 123 148 Slowest Speed 160 | 160 160 Overloaded Moves . | . . Propulsion Burnouts . | . . Robots Hopped . | . . Potential Cave-ins . | . . Cave-ins Triggered . | . . Exploration Rate (%) 21 | 4 38 Regions Visited 1 Branch Regions . Pre-discovered Areas . | . . Known Exits Taken . | . . Unknown Exits Taken 1 | 1 . Scrap Searched . | . . Spaces Dug . | . . Terrain Destroyed . | . . Melee . | . . Projectile . | . . AOE . | . . Terrain Rammed . | . . Walls Destroyed . | . . Machines Disabled . | . . Actions | -11 -10 --------- Run | Yrd Mat Total 364 | 65 299 Wait 46 | . 46 Move 244 | 44 200 Hop . | . . Pick Up 15 | 10 5 Fast Attach 1 | 1 . Attach 12 | 6 6 Detach 1 | . 1 Swap 1 | . 1 Drop . | . . Fire 44 | 4 40 Melee . | . . Ram . | . . Kick . | . . Crush . | . . Escape Stasis . | . . Rewire . | . . Trap . | . . Miscellaneous . | . . Route ------- -11/Scrapyard -10/Materials (discovered 1 exit: [*Mat]) History --------- Turn | Location | Event 47 | -11/Scrapyard | Discovered new exit (range 16) 83 | -11/Scrapyard | Entered Materials 228 | -10/Materials | Discovered new exit (range 16) 312 | -10/Materials | Build established: Mutant 430 | -10/Materials | Core integrity fell below 50% 461 | -10/Materials | Lost 5 parts (1p2n1u1w) 543 | -10/Materials | Destroyed by exploding Fusion Modulator Last Messages --------------- 00426_ Lgt. Assault Rifle destroyed. 00427_ O-16 Technician destroyed. 00427_ Seismic Detector destroyed. 00428_ Ion Engine destroyed. 00430_ Lgt. Treads destroyed. 00435_ K-01 Serf collects debris. 00442_ K-01 Serf cleans the Terminal. 00473_ G-47 Trooper destroyed. 00495_ K-01 Serf collects debris. 00498_ Acquired 51 matter. 00499_ Acquired 30 matter. 00500_ K-01 Serf collects debris. 00509_ Acquired Imp. Heat Sink. 00511_ Acquired Particle Gun. 00512_ K-01 Serf cleans the Fusion Modulator. 00516_ Acquired Lgt. Nuclear Core. 00529_ G-34 Mercenary destroyed. 00534_ Lgt. Assault Rifle destroyed. 00538_ G-34 Mercenary destroyed. 00543_ Fusion Modulator explodes. Map ----- +----------------------------------------------------+ | ???????????????????????????????????????????? | | ????????????????????????????????????? ??? | | ????????????????????????????????????T "?" | | ???????????????????????????????????#" """ | | ???????????????????????????????????# | | ???????????????????????????????????# | | ???????????????????????????????????+ """ | | ??????????? ???????????????????????# """ | | ??????????? ???????????????????????# """ | | ??????????? ???????????????????????# | | ??????????? ???????????????????????# | | ??????????# ????########???????????# """ | | ??????????# ### ! #######?????# """ | | ??????????# # """ # ####### """ | | ??????????# # """ # | | ??????????# # """ + | | ??????????+ + # | | ??????????# # " " # ########### | | ??????????# # "R" ## ##########?# """ | | ??????##### # """ ## # #?# "" | | ??????# # #T # #?# " " | | ??????# ########### # #?# =[= | | ??????# # ## # #?# *%= | | ??????###T## ## + / #?# /=% | | ????????#### ## ## # #?# | | ???????????# ## @ ###### #?# ### | | ?########### ## == #????# #?# #?? | | ?# # ## %== #????# #?# #?? | | ?# # #####+#####????#####+####?# #?? | | ?# # [=%%#???????????# #????# %#?? | | ?# + ! #?????????### ###??# #?? | | ?? """ """ # + #???????# #### #?? | | ????"" """ # """ # #???????# #?? | | ????"" """ # """ ###???????# * #?? | | ???? # """ #?????????# #?? | | ???######### #?????????# ###+####?? | | ???????????# ############ ##? ????? | | ???????????# ###### # #?? ????? | | ???????????# #????# # #? ????? | | ???????????# #????# + #? ????? | | ???????????# #????# # #? ????? | | ???????????+ #????# # ## ????? | | ???????????# #????############ ## "???? | | ???????????# #????????######?# ## "???? | | ???????????? ?????????# # ## ???? | | ????????????????????????#""" # #######???? | | ????????????????????????#""" + #?????????? | | ????????????????????????#""" # ########??? | | ????????????????????????# # # """ #??? | | ????????????????????????# ?# # """ #??? | +----------------------------------------------------+ Best States ------------- Heat Dissipation 39 Energy Generation 10 Energy Capacity 250 Matter Stores 300 Matter Capacity 300 Sight Range 16 Terrain Scan Density 10 Evasion (%) 50 Recoil Reduction 2 Item Schematics ----------------- None Robot Schematics ------------------ None Fabricated ------------ Nothing Repaired ---------- Nothing Studied --------- None Alien Tech Used ----------------- None Achievements -------------- None Challenges ------------ None Game ------ Seed AntimatterLauncherFirepult Manual? 0 Play Time 00:05:38 Cumulative 129.7 hours Start 2025.12.09 @ 11:55:54 End 2025.12.09 @ 11:59:01 Sessions 1 Manual Loads 0 Difficulty Rogue Special Mode None Game No. 149 Rogue 149 Adventurer 0 Explorer 0 Win Type - Total 2 Types 2/0/0/0/0/0/0/0/0/0 Lore% 72 Gallery% 63 Achievement% 44 Wizard Run 0 Options --------- Layout 1 ASCII 0 Keyboard 0 Movement Arrows Keybinds 0 Fullscreen 1 Font 32/SmallcapsGlow Map View 50x35 Zoom Use 0% Tactical HUD 1 Map Filters NONE Filters NONE Steam 1 RUN: 7060877b-8995-48dd-93f1-4811fc159e3d